[Event "Titled Tuesday Blitz March 07 Late 2023"]
[White "Federzoni, Enzo"]
[Black "Goltsev, Dmitry"]
[WhiteFideId "2173301"]
[BlackFideId "24176710"]
[WhiteElo "2039"]
[BlackElo "2336"]
[Result "0-1"]
[Round "01"]
[TimeControl "180+2"]
[Date "2023.03.07"]
[WhiteClock "0:00:07"]
[BlackClock "0:00:35"]

1. c4 {[%clk 0:02:51]}  Nf6 {[%clk 0:02:59]} 2. Nc3 {[%clk 0:02:49]}  g6 {[%clk 0:02:58]} 3. d4 {[%clk 0:02:46]}  Bg7 {[%clk 0:02:58]} 4. e4 {[%clk 0:02:46]}  d6 {[%clk 0:02:58]} 5. Nf3 {[%clk 0:02:46]}  O-O {[%clk 0:02:58]} 6. Bd3 {[%clk 0:02:46]}  c5 {[%clk 0:02:57]} 7. Be2 {[%clk 0:02:36]}  Nc6 {[%clk 0:02:57]} 8. d5 {[%clk 0:02:25]}  Ne5 {[%clk 0:02:56]} 9. Nxe5 {[%clk 0:02:05]}  dxe5 {[%clk 0:02:57]} 10. O-O {[%clk 0:02:05]}  Ne8 {[%clk 0:02:56]} 11. Be3 {[%clk 0:01:58]}  b6 {[%clk 0:02:55]} 12. a3 {[%clk 0:01:56]}  f5 {[%clk 0:02:41]} 13. f3 {[%clk 0:01:55]}  Nd6 {[%clk 0:02:38]} 14. b4 {[%clk 0:01:48]}  Qc7 {[%clk 0:02:34]} 15. Kh1 {[%clk 0:01:42]}  cxb4 {[%clk 0:02:25]} 16. axb4 {[%clk 0:01:42]}  Nxc4 {[%clk 0:02:26]} 17. Qb3 {[%clk 0:01:35]}  Nd6 {[%clk 0:02:22]} 18. Rfc1 {[%clk 0:01:35]}  Qd8 {[%clk 0:02:20]} 19. b5 {[%clk 0:01:29]}  Bd7 {[%clk 0:02:19]} 20. Bd3 {[%clk 0:01:28]}  f4 {[%clk 0:02:11]} 21. Bf2 {[%clk 0:01:28]}  g5 {[%clk 0:02:11]} 22. Ra6 {[%clk 0:01:23]}  g4 {[%clk 0:02:11]} 23. Rca1 {[%clk 0:01:16]}  h5 {[%clk 0:02:11]} 24. Rxa7 {[%clk 0:01:11]}  Rxa7 {[%clk 0:02:09]} 25. Rxa7 {[%clk 0:01:12]}  Bf6 {[%clk 0:02:08]} 26. Bf1 {[%clk 0:01:04]}  h4 {[%clk 0:02:07]} 27. fxg4 {[%clk 0:01:04]}  Bxg4 {[%clk 0:02:08]} 28. h3 {[%clk 0:01:01]}  Bc8 {[%clk 0:02:04]} 29. Qd1 {[%clk 0:01:01]}  Kg7 {[%clk 0:02:02]} 30. Qh5 {[%clk 0:00:52]}  Rh8 {[%clk 0:02:01]} 31. Qf3 {[%clk 0:00:51]}  Kg6 {[%clk 0:01:54]} 32. Be2 {[%clk 0:00:50]}  Bd7 {[%clk 0:01:53]} 33. Ra6 {[%clk 0:00:42]}  Nc8 {[%clk 0:01:49]} 34. Qd3 {[%clk 0:00:39]}  Qc7 {[%clk 0:01:47]} 35. Ra8 {[%clk 0:00:36]}  Kg7 {[%clk 0:01:44]} 36. d6 {[%clk 0:00:31]}  Qxd6 {[%clk 0:01:40]} 37. Nd5 {[%clk 0:00:31]}  Bg5 {[%clk 0:01:30]} 38. Qf3 {[%clk 0:00:31]}  Qg6 {[%clk 0:01:18]} 39. Kh2 {[%clk 0:00:26]}  Qd6 {[%clk 0:01:12]} 40. Kh1 {[%clk 0:00:26]}  Be6 {[%clk 0:00:54]} 41. Qd3 {[%clk 0:00:22]}  Bf7 {[%clk 0:00:49]} 42. Bg4 {[%clk 0:00:20]}  e6 {[%clk 0:00:48]} 43. Nxf4 {[%clk 0:00:10]}  Bxf4 {[%clk 0:00:44]} 44. Qc3 {[%clk 0:00:11]}  Ne7 {[%clk 0:00:37]} 45. Ra7 {[%clk 0:00:10]}  Rc8 {[%clk 0:00:36]} 46. Qb2 {[%clk 0:00:09]}  Rc1+ {[%clk 0:00:36]} 47. Bg1 {[%clk 0:00:07]}  Be3 {[%clk 0:00:35]} 0-1


[Site "https://www.chess.com"]

[Event "Titled Tuesday Blitz March 07 Late 2023"]
[White "Martynov, Pavel"]
[Black "sissahungrychess"]
[WhiteFideId "4101260"]
[WhiteElo "2314"]
[BlackElo "2389"]
[Result "1-0"]
[Round "01"]
[TimeControl "180+2"]
[Date "2023.03.07"]
[WhiteClock "0:00:55"]
[BlackClock "0:00:03"]

1. e4 {[%clk 0:02:55]}  c5 {[%clk 0:02:59]} 2. Nf3 {[%clk 0:02:56]}  d6 {[%clk 0:03:00]} 3. Bb5+ {[%clk 0:02:56]}  Nd7 {[%clk 0:02:59]} 4. O-O {[%clk 0:02:55]}  Nf6 {[%clk 0:02:59]} 5. Re1 {[%clk 0:02:55]}  e6 {[%clk 0:03:00]} 6. c3 {[%clk 0:02:55]}  Be7 {[%clk 0:03:00]} 7. d4 {[%clk 0:02:56]}  O-O {[%clk 0:03:01]} 8. h3 {[%clk 0:02:56]}  a6 {[%clk 0:03:01]} 9. Bf1 {[%clk 0:02:55]}  b5 {[%clk 0:02:58]} 10. a4 {[%clk 0:02:53]}  Rb8 {[%clk 0:02:58]} 11. axb5 {[%clk 0:02:49]}  axb5 {[%clk 0:02:59]} 12. Bf4 {[%clk 0:02:50]}  Rb6 {[%clk 0:02:28]} 13. Nbd2 {[%clk 0:02:29]}  Bb7 {[%clk 0:02:23]} 14. e5 {[%clk 0:02:18]}  Nd5 {[%clk 0:02:12]} 15. Bg3 {[%clk 0:02:16]}  cxd4 {[%clk 0:02:05]} 16. exd6 {[%clk 0:02:13]}  Bxd6 {[%clk 0:02:01]} 17. Bxd6 {[%clk 0:02:13]}  Rxd6 {[%clk 0:02:01]} 18. Nxd4 {[%clk 0:02:14]}  b4 {[%clk 0:01:53]} 19. Nb5 {[%clk 0:02:13]}  Rb6 {[%clk 0:01:35]} 20. Ne4 {[%clk 0:02:13]}  bxc3 {[%clk 0:01:30]} 21. bxc3 {[%clk 0:02:14]}  N7f6 {[%clk 0:01:21]} 22. c4 {[%clk 0:02:09]}  Nxe4 {[%clk 0:01:09]} 23. Rxe4 {[%clk 0:02:10]}  Nf6 {[%clk 0:01:03]} 24. Rd4 {[%clk 0:02:10]}  Qb8 {[%clk 0:00:48]} 25. c5 {[%clk 0:02:08]}  Ra6 {[%clk 0:00:42]} 26. Rb1 {[%clk 0:02:04]}  Be4 {[%clk 0:00:21]} 27. Rb3 {[%clk 0:01:57]}  Bd5 {[%clk 0:00:20]} 28. Rg3 {[%clk 0:01:52]}  Qe5 {[%clk 0:00:20]} 29. f4 {[%clk 0:01:48]}  Qh5 {[%clk 0:00:16]} 30. Qd3 {[%clk 0:01:42]}  Rc6 {[%clk 0:00:15]} 31. Qc3 {[%clk 0:01:32]}  Rb8 {[%clk 0:00:12]} 32. Rb4 {[%clk 0:01:24]}  Qh6 {[%clk 0:00:12]} 33. Nd4 {[%clk 0:01:17]}  Rxb4 {[%clk 0:00:12]} 34. Qxb4 {[%clk 0:01:17]}  Rc8 {[%clk 0:00:12]} 35. Nb5 {[%clk 0:01:13]}  Ne4 {[%clk 0:00:10]} 36. Nd6 {[%clk 0:01:09]}  Qxf4 {[%clk 0:00:10]} 37. Rf3 {[%clk 0:01:06]}  Qe5 {[%clk 0:00:03]} 38. Nxc8 {[%clk 0:01:05]}  Ng5 {[%clk 0:00:03]} 39. Rf2 {[%clk 0:00:57]}  h5 {[%clk 0:00:03]} 40. Qf4 {[%clk 0:00:55]} 1-0


[Site "https://www.chess.com"]

[Event "Titled Tuesday Blitz March 07 Late 2023"]
[White "Fus, Jakub"]
[Black "Van Dael, Siem"]
[WhiteFideId "1193023"]
[BlackFideId "1049771"]
[WhiteElo "2335"]
[BlackElo "2336"]
[Result "1-0"]
[Round "01"]
[TimeControl "180+2"]
[Date "2023.03.07"]
[WhiteClock "0:01:01"]
[BlackClock "0:00:49"]

1. e4 {[%clk 0:02:58]}  c5 {[%clk 0:02:59]} 2. Nf3 {[%clk 0:02:58]}  d6 {[%clk 0:02:59]} 3. Nc3 {[%clk 0:02:56]}  Nf6 {[%clk 0:02:59]} 4. d4 {[%clk 0:02:57]}  cxd4 {[%clk 0:02:59]} 5. Qxd4 {[%clk 0:02:58]}  Nc6 {[%clk 0:02:57]} 6. Bb5 {[%clk 0:02:57]}  Bd7 {[%clk 0:02:58]} 7. Bxc6 {[%clk 0:02:57]}  Bxc6 {[%clk 0:02:56]} 8. Bg5 {[%clk 0:02:58]}  e6 {[%clk 0:02:46]} 9. O-O-O {[%clk 0:02:58]}  h6 {[%clk 0:02:42]} 10. Bxf6 {[%clk 0:02:49]}  Qxf6 {[%clk 0:02:41]} 11. Qxf6 {[%clk 0:02:48]}  gxf6 {[%clk 0:02:41]} 12. Nd4 {[%clk 0:02:49]}  h5 {[%clk 0:02:38]} 13. f4 {[%clk 0:02:21]}  Bh6 {[%clk 0:02:35]} 14. g3 {[%clk 0:02:20]}  Ke7 {[%clk 0:02:28]} 15. Kb1 {[%clk 0:02:02]}  Rac8 {[%clk 0:02:24]} 16. Rhe1 {[%clk 0:02:01]}  Rhd8 {[%clk 0:02:23]} 17. Nd5+ {[%clk 0:01:57]}  Kf8 {[%clk 0:02:03]} 18. Nxf6 {[%clk 0:01:54]}  h4 {[%clk 0:02:03]} 19. Nxc6 {[%clk 0:01:38]}  Rxc6 {[%clk 0:02:02]} 20. Ng4 {[%clk 0:01:39]}  Bg7 {[%clk 0:02:00]} 21. f5 {[%clk 0:01:33]}  Ke7 {[%clk 0:01:49]} 22. Rf1 {[%clk 0:01:30]}  Bh8 {[%clk 0:01:09]} 23. gxh4 {[%clk 0:01:23]}  Rg8 {[%clk 0:01:07]} 24. h3 {[%clk 0:01:23]}  Rc4 {[%clk 0:01:01]} 25. f6+ {[%clk 0:01:18]}  Ke8 {[%clk 0:01:00]} 26. Rxd6 {[%clk 0:01:14]}  Rg6 {[%clk 0:00:49]} 27. e5 {[%clk 0:01:01]} 1-0


[Site "https://www.chess.com"]

[Event "Titled Tuesday Blitz March 07 Late 2023"]
[White "Figorito, Nick"]
[Black "Sochacki, Christophe"]
[WhiteFideId "30923689"]
[BlackFideId "662569"]
[WhiteElo "2380"]
[BlackElo "2474"]
[Result "0-1"]
[Round "01"]
[TimeControl "180+2"]
[Date "2023.03.07"]
[WhiteClock "0:00:11"]
[BlackClock "0:00:01"]

1. Nf3 {[%clk 0:03:00]}  Nc6 {[%clk 0:02:58]} 2. e4 {[%clk 0:03:00]}  e5 {[%clk 0:02:55]} 3. Bc4 {[%clk 0:03:00]}  Nf6 {[%clk 0:02:53]} 4. d4 {[%clk 0:02:58]}  exd4 {[%clk 0:02:48]} 5. O-O {[%clk 0:02:58]}  Nxe4 {[%clk 0:02:31]} 6. Re1 {[%clk 0:02:58]}  d5 {[%clk 0:02:32]} 7. Bxd5 {[%clk 0:02:58]}  Qxd5 {[%clk 0:02:32]} 8. Nc3 {[%clk 0:02:59]}  Qa5 {[%clk 0:02:31]} 9. Nxe4 {[%clk 0:02:59]}  Be7 {[%clk 0:02:31]} 10. Bg5 {[%clk 0:02:39]}  f6 {[%clk 0:01:51]} 11. Bd2 {[%clk 0:02:38]}  Qd5 {[%clk 0:01:40]} 12. Bf4 {[%clk 0:02:35]}  Bg4 {[%clk 0:01:35]} 13. Bxc7 {[%clk 0:02:25]}  O-O {[%clk 0:01:31]} 14. h3 {[%clk 0:02:19]}  Bh5 {[%clk 0:01:15]} 15. Ng3 {[%clk 0:02:19]}  Bxf3 {[%clk 0:01:14]} 16. Qxf3 {[%clk 0:02:20]}  Qxf3 {[%clk 0:01:14]} 17. gxf3 {[%clk 0:02:21]}  Rfe8 {[%clk 0:01:11]} 18. Nf5 {[%clk 0:02:13]}  Kf7 {[%clk 0:01:00]} 19. Bd6 {[%clk 0:02:01]}  Rad8 {[%clk 0:00:48]} 20. Bxe7 {[%clk 0:01:52]}  Nxe7 {[%clk 0:00:49]} 21. Nxe7 {[%clk 0:01:41]}  Rxe7 {[%clk 0:00:50]} 22. Rxe7+ {[%clk 0:01:39]}  Kxe7 {[%clk 0:00:51]} 23. Kf1 {[%clk 0:01:39]}  Rc8 {[%clk 0:00:49]} 24. Re1+ {[%clk 0:01:32]}  Kd6 {[%clk 0:00:48]} 25. Re2 {[%clk 0:01:32]}  Rc5 {[%clk 0:00:42]} 26. Kg2 {[%clk 0:01:25]}  Rg5+ {[%clk 0:00:37]} 27. Kh2 {[%clk 0:01:25]}  Re5 {[%clk 0:00:38]} 28. Rd2 {[%clk 0:01:18]}  Kc5 {[%clk 0:00:38]} 29. Kg3 {[%clk 0:01:14]}  Rg5+ {[%clk 0:00:30]} 30. Kf4 {[%clk 0:01:06]}  Rh5 {[%clk 0:00:30]} 31. Kg4 {[%clk 0:01:04]}  Rg5+ {[%clk 0:00:31]} 32. Kf4 {[%clk 0:01:04]}  b5 {[%clk 0:00:29]} 33. a3 {[%clk 0:00:42]}  a5 {[%clk 0:00:29]} 34. Re2 {[%clk 0:00:39]}  Rh5 {[%clk 0:00:18]} 35. Kg4 {[%clk 0:00:38]}  Rg5+ {[%clk 0:00:19]} 36. Kf4 {[%clk 0:00:39]}  Rg1 {[%clk 0:00:19]} 37. Re7 {[%clk 0:00:33]}  Rg2 {[%clk 0:00:19]} 38. Rc7+ {[%clk 0:00:30]}  Kd6 {[%clk 0:00:17]} 39. Rb7 {[%clk 0:00:30]}  Kc6 {[%clk 0:00:16]} 40. Rb8 {[%clk 0:00:28]}  Rxf2 {[%clk 0:00:15]} 41. Ke4 {[%clk 0:00:28]}  Rd2 {[%clk 0:00:06]} 42. Rc8+ {[%clk 0:00:25]}  Kd7 {[%clk 0:00:06]} 43. Rb8 {[%clk 0:00:25]}  Kc6 {[%clk 0:00:06]} 44. Rc8+ {[%clk 0:00:25]}  Kb7 {[%clk 0:00:07]} 45. Rg8 {[%clk 0:00:23]}  g6 {[%clk 0:00:08]} 46. Rg7+ {[%clk 0:00:23]}  Kc6 {[%clk 0:00:08]} 47. Rxh7 {[%clk 0:00:23]}  Rxc2 {[%clk 0:00:08]} 48. Rf7 {[%clk 0:00:18]}  f5+ {[%clk 0:00:08]} 49. Kxd4 {[%clk 0:00:18]}  Rd2+ {[%clk 0:00:06]} 50. Kc3 {[%clk 0:00:17]}  Rf2 {[%clk 0:00:06]} 51. Rf6+ {[%clk 0:00:17]}  Kd5 {[%clk 0:00:06]} 52. Rxg6 {[%clk 0:00:18]}  Rxf3+ {[%clk 0:00:07]} 53. Kc2 {[%clk 0:00:17]}  Rxh3 {[%clk 0:00:07]} 54. a4 {[%clk 0:00:14]}  b4 {[%clk 0:00:03]} 55. Ra6 {[%clk 0:00:14]}  f4 {[%clk 0:00:03]} 56. Rxa5+ {[%clk 0:00:14]}  Ke4 {[%clk 0:00:03]} 57. Rb5 {[%clk 0:00:14]}  b3+ {[%clk 0:00:02]} 58. Kd1 {[%clk 0:00:11]}  f3 {[%clk 0:00:02]} 59. Rb8 {[%clk 0:00:09]}  Ke3 {[%clk 0:00:02]} 60. Re8+ {[%clk 0:00:09]}  Kf2 {[%clk 0:00:02]} 61. Kd2 {[%clk 0:00:08]}  Rh4 {[%clk 0:00:02]} 62. Kc3 {[%clk 0:00:07]}  Rxa4 {[%clk 0:00:03]} 63. Kxb3 {[%clk 0:00:07]}  Rg4 {[%clk 0:00:03]} 64. Kc3 {[%clk 0:00:06]}  Kg3 {[%clk 0:00:02]} 65. Rf8 {[%clk 0:00:06]}  f2 {[%clk 0:00:03]} 66. Rxf2 {[%clk 0:00:03]}  Kxf2 {[%clk 0:00:03]} 67. b4 {[%clk 0:00:04]}  Ke3 {[%clk 0:00:03]} 68. b5 {[%clk 0:00:05]}  Rf4 {[%clk 0:00:02]} 69. Kb3 {[%clk 0:00:05]}  Kd4 {[%clk 0:00:02]} 70. Kb4 {[%clk 0:00:06]}  Kd5+ {[%clk 0:00:03]} 71. Ka5 {[%clk 0:00:07]}  Kc5 {[%clk 0:00:03]} 72. Ka6 {[%clk 0:00:07]}  Rb4 {[%clk 0:00:03]} 73. Ka7 {[%clk 0:00:07]}  Rxb5 {[%clk 0:00:04]} 74. Ka8 {[%clk 0:00:08]}  Kc6 {[%clk 0:00:04]} 75. Ka7 {[%clk 0:00:09]}  Rb6 {[%clk 0:00:03]} 76. Ka8 {[%clk 0:00:10]}  Kc7 {[%clk 0:00:04]} 77. Ka7 {[%clk 0:00:11]}  Rd6 {[%clk 0:00:04]} 78. Ka8 {[%clk 0:00:11]}  Ra6# {[%clk 0:00:01]} 0-1


[Site "https://www.chess.com"]

[Event "Titled Tuesday Blitz March 07 Late 2023"]
[White "Grinev, Valeriy"]
[Black "Suarez Uriel, Adrian"]
[WhiteFideId "14117517"]
[BlackFideId "22230874"]
[WhiteElo "2365"]
[BlackElo "2331"]
[Result "1-0"]
[Round "01"]
[TimeControl "180+2"]
[Date "2023.03.07"]
[WhiteClock "0:00:17"]
[BlackClock "0:00:02"]

1. d4 {[%clk 0:02:58]}  Nf6 {[%clk 0:02:58]} 2. c4 {[%clk 0:02:57]}  g6 {[%clk 0:02:56]} 3. Nc3 {[%clk 0:02:57]}  d5 {[%clk 0:02:55]} 4. cxd5 {[%clk 0:02:57]}  Nxd5 {[%clk 0:02:56]} 5. e4 {[%clk 0:02:58]}  Nxc3 {[%clk 0:02:57]} 6. bxc3 {[%clk 0:02:59]}  Bg7 {[%clk 0:02:57]} 7. Be3 {[%clk 0:02:59]}  c5 {[%clk 0:02:57]} 8. Nf3 {[%clk 0:02:59]}  Qa5 {[%clk 0:02:57]} 9. Qd2 {[%clk 0:03:00]}  O-O {[%clk 0:02:55]} 10. Rc1 {[%clk 0:03:00]}  Rd8 {[%clk 0:02:55]} 11. d5 {[%clk 0:03:00]}  b6 {[%clk 0:02:55]} 12. Be2 {[%clk 0:02:46]}  Nc6 {[%clk 0:02:55]} 13. O-O {[%clk 0:02:40]}  e6 {[%clk 0:02:55]} 14. Bg5 {[%clk 0:02:37]}  f6 {[%clk 0:02:53]} 15. Be3 {[%clk 0:02:37]}  exd5 {[%clk 0:02:53]} 16. exd5 {[%clk 0:02:37]}  Ba6 {[%clk 0:02:53]} 17. Rfd1 {[%clk 0:02:22]}  Qa4 {[%clk 0:02:32]} 18. c4 {[%clk 0:02:09]}  Na5 {[%clk 0:02:29]} 19. Qc2 {[%clk 0:01:57]}  Qxc2 {[%clk 0:02:28]} 20. Rxc2 {[%clk 0:01:58]}  Nb7 {[%clk 0:02:26]} 21. Bf4 {[%clk 0:01:41]}  Nd6 {[%clk 0:02:20]} 22. Nd2 {[%clk 0:01:42]}  f5 {[%clk 0:02:18]} 23. g4 {[%clk 0:01:39]}  Bc8 {[%clk 0:02:12]} 24. h3 {[%clk 0:01:38]}  fxg4 {[%clk 0:02:05]} 25. hxg4 {[%clk 0:01:38]}  Ba6 {[%clk 0:02:01]} 26. Kg2 {[%clk 0:01:35]}  Rd7 {[%clk 0:02:01]} 27. Bxd6 {[%clk 0:01:33]}  Rxd6 {[%clk 0:02:01]} 28. Ne4 {[%clk 0:01:34]}  Rd7 {[%clk 0:02:00]} 29. Bf3 {[%clk 0:01:35]}  Rf8 {[%clk 0:01:57]} 30. d6 {[%clk 0:01:34]}  Bd4 {[%clk 0:01:57]} 31. g5 {[%clk 0:01:27]}  Kg7 {[%clk 0:01:55]} 32. Bg4 {[%clk 0:01:24]}  Rdf7 {[%clk 0:01:49]} 33. f3 {[%clk 0:01:19]}  Bb7 {[%clk 0:01:42]} 34. d7 {[%clk 0:01:19]}  Rd8 {[%clk 0:01:24]} 35. Rcd2 {[%clk 0:01:16]}  Rf4 {[%clk 0:01:14]} 36. Kg3 {[%clk 0:01:11]}  Be5 {[%clk 0:01:09]} 37. Kh3 {[%clk 0:01:11]}  Bxe4 {[%clk 0:01:08]} 38. fxe4 {[%clk 0:01:12]}  Rxe4 {[%clk 0:01:07]} 39. Rf1 {[%clk 0:01:12]}  Re3+ {[%clk 0:00:48]} 40. Rf3 {[%clk 0:01:05]}  Rxf3+ {[%clk 0:00:48]} 41. Bxf3 {[%clk 0:01:06]}  Bf4 {[%clk 0:00:48]} 42. Rd5 {[%clk 0:01:05]}  Kf7 {[%clk 0:00:42]} 43. Bg4 {[%clk 0:01:04]}  Ke7 {[%clk 0:00:42]} 44. Kh4 {[%clk 0:01:04]}  Rf8 {[%clk 0:00:38]} 45. Rd1 {[%clk 0:01:03]}  Kd8 {[%clk 0:00:38]} 46. Re1 {[%clk 0:00:56]}  Bd6 {[%clk 0:00:35]} 47. Kh3 {[%clk 0:00:52]}  Be7 {[%clk 0:00:36]} 48. Re5 {[%clk 0:00:50]}  Rf4 {[%clk 0:00:36]} 49. Be6 {[%clk 0:00:48]}  Rf2 {[%clk 0:00:29]} 50. Kg3 {[%clk 0:00:43]}  Rxa2 {[%clk 0:00:29]} 51. Re3 {[%clk 0:00:44]}  Rd2 {[%clk 0:00:25]} 52. Rf3 {[%clk 0:00:44]}  Re2 {[%clk 0:00:20]} 53. Bh3 {[%clk 0:00:37]}  Re5 {[%clk 0:00:20]} 54. Rf7 {[%clk 0:00:36]}  Rxg5+ {[%clk 0:00:20]} 55. Kf3 {[%clk 0:00:37]}  h5 {[%clk 0:00:20]} 56. Rh7 {[%clk 0:00:36]}  Re5 {[%clk 0:00:20]} 57. Rh8+ {[%clk 0:00:34]}  Kc7 {[%clk 0:00:21]} 58. Rc8+ {[%clk 0:00:35]}  Kb7 {[%clk 0:00:21]} 59. Re8 {[%clk 0:00:33]}  Kc7 {[%clk 0:00:20]} 60. Kf4 {[%clk 0:00:30]}  Re1 {[%clk 0:00:19]} 61. Rc8+ {[%clk 0:00:30]}  Kb7 {[%clk 0:00:19]} 62. Bg2+ {[%clk 0:00:29]}  Ka6 {[%clk 0:00:18]} 63. Bc6 {[%clk 0:00:30]}  g5+ {[%clk 0:00:17]} 64. Kf5 {[%clk 0:00:30]}  g4 {[%clk 0:00:18]} 65. Re8 {[%clk 0:00:30]}  Rf1+ {[%clk 0:00:19]} 66. Kg6 {[%clk 0:00:29]}  Bh4 {[%clk 0:00:19]} 67. Kxh5 {[%clk 0:00:29]}  Bf6 {[%clk 0:00:19]} 68. Rf8 {[%clk 0:00:28]}  Rh1+ {[%clk 0:00:17]} 69. Kxg4 {[%clk 0:00:29]}  Be7 {[%clk 0:00:17]} 70. Re8 {[%clk 0:00:28]}  Rg1+ {[%clk 0:00:17]} 71. Kf5 {[%clk 0:00:28]}  Bh4 {[%clk 0:00:17]} 72. d8=Q {[%clk 0:00:26]}  Bxd8 {[%clk 0:00:16]} 73. Rxd8 {[%clk 0:00:27]}  Ka5 {[%clk 0:00:17]} 74. Ra8 {[%clk 0:00:25]}  Kb4 {[%clk 0:00:17]} 75. Bb5 {[%clk 0:00:24]}  Ra1 {[%clk 0:00:18]} 76. Ke4 {[%clk 0:00:24]}  a5 {[%clk 0:00:18]} 77. Kd3 {[%clk 0:00:24]}  a4 {[%clk 0:00:19]} 78. Kc2 {[%clk 0:00:25]}  Ra2+ {[%clk 0:00:18]} 79. Kb1 {[%clk 0:00:24]}  Ra3 {[%clk 0:00:19]} 80. Ra6 {[%clk 0:00:24]}  Rb3+ {[%clk 0:00:19]} 81. Kc2 {[%clk 0:00:24]}  a3 {[%clk 0:00:20]} 82. Rxb6 {[%clk 0:00:23]}  Rb2+ {[%clk 0:00:18]} 83. Kc1 {[%clk 0:00:23]}  Rh2 {[%clk 0:00:19]} 84. Ra6 {[%clk 0:00:22]}  a2 {[%clk 0:00:16]} 85. Bd7 {[%clk 0:00:16]}  Kb3 {[%clk 0:00:16]} 86. Bg4 {[%clk 0:00:14]}  Rh1+ {[%clk 0:00:05]} 87. Bd1+ {[%clk 0:00:13]}  Kc3 {[%clk 0:00:03]} 88. Rxa2 {[%clk 0:00:14]}  Kxc4 {[%clk 0:00:04]} 89. Rd2 {[%clk 0:00:14]}  Kb4 {[%clk 0:00:03]} 90. Kc2 {[%clk 0:00:14]}  c4 {[%clk 0:00:04]} 91. Be2 {[%clk 0:00:15]}  c3 {[%clk 0:00:03]} 92. Rd4+ {[%clk 0:00:15]}  Kc5 {[%clk 0:00:04]} 93. Rc4+ {[%clk 0:00:15]}  Kd5 {[%clk 0:00:04]} 94. Rxc3 {[%clk 0:00:16]}  Rh2 {[%clk 0:00:04]} 95. Kd2 {[%clk 0:00:17]}  Kd4 {[%clk 0:00:04]} 96. Ra3 {[%clk 0:00:18]}  Rg2 {[%clk 0:00:04]} 97. Ra4+ {[%clk 0:00:18]}  Kc5 {[%clk 0:00:04]} 98. Kd3 {[%clk 0:00:18]}  Rg3+ {[%clk 0:00:03]} 99. Kd2 {[%clk 0:00:18]}  Rg2 {[%clk 0:00:04]} 100. Ke3 {[%clk 0:00:19]}  Rg3+ {[%clk 0:00:04]} 101. Bf3 {[%clk 0:00:19]}  Kb5 {[%clk 0:00:04]} 102. Re4 {[%clk 0:00:19]}  Kc5 {[%clk 0:00:04]} 103. Kf4 {[%clk 0:00:18]}  Rg1 {[%clk 0:00:04]} 104. Be2 {[%clk 0:00:18]}  Rh1 {[%clk 0:00:03]} 105. Ke5 {[%clk 0:00:19]}  Rh4 {[%clk 0:00:02]} 106. Rxh4 {[%clk 0:00:17]} 1-0


[Site "https://www.chess.com"]

[Event "Titled Tuesday Blitz March 07 Late 2023"]
[White "Benaddi, Mouhcine"]
[Black "Almeida Quintana, Omar"]
[WhiteFideId "9001050"]
[BlackFideId "3503313"]
[WhiteElo "2036"]
[BlackElo "2530"]
[Result "0-1"]
[Round "01"]
[TimeControl "180+2"]
[Date "2023.03.07"]
[WhiteClock "0:00:04"]
[BlackClock "0:01:05"]

1. Nf3 {[%clk 0:03:00]}  g6 {[%clk 0:02:59]} 2. g3 {[%clk 0:02:59]}  Bg7 {[%clk 0:02:59]} 3. Bg2 {[%clk 0:03:00]}  c5 {[%clk 0:02:59]} 4. O-O {[%clk 0:03:01]}  Nc6 {[%clk 0:03:00]} 5. c3 {[%clk 0:03:01]}  e5 {[%clk 0:03:00]} 6. d3 {[%clk 0:03:00]}  d6 {[%clk 0:03:00]} 7. e4 {[%clk 0:02:59]}  Nge7 {[%clk 0:03:00]} 8. Be3 {[%clk 0:02:58]}  O-O {[%clk 0:02:59]} 9. Qc1 {[%clk 0:02:57]}  b5 {[%clk 0:02:55]} 10. Bh6 {[%clk 0:02:58]}  f6 {[%clk 0:02:53]} 11. Bxg7 {[%clk 0:02:57]}  Kxg7 {[%clk 0:02:54]} 12. a4 {[%clk 0:02:57]}  b4 {[%clk 0:02:53]} 13. Nbd2 {[%clk 0:02:56]}  Ba6 {[%clk 0:02:52]} 14. Nc4 {[%clk 0:02:54]}  Rb8 {[%clk 0:02:51]} 15. Bh3 {[%clk 0:02:45]}  h6 {[%clk 0:02:49]} 16. Nh4 {[%clk 0:02:42]}  f5 {[%clk 0:02:47]} 17. exf5 {[%clk 0:02:40]}  gxf5 {[%clk 0:02:44]} 18. f4 {[%clk 0:02:35]}  e4 {[%clk 0:02:37]} 19. Qd1 {[%clk 0:01:39]}  d5 {[%clk 0:02:34]} 20. Ne5 {[%clk 0:01:35]}  Qd6 {[%clk 0:02:17]} 21. Nxc6 {[%clk 0:01:32]}  Qxc6 {[%clk 0:02:16]} 22. c4 {[%clk 0:01:26]}  exd3 {[%clk 0:02:10]} 23. Qxd3 {[%clk 0:01:14]}  Bxc4 {[%clk 0:02:07]} 24. Qe3 {[%clk 0:01:14]}  Rbe8 {[%clk 0:02:04]} 25. Rfe1 {[%clk 0:01:04]}  Qd6 {[%clk 0:01:54]} 26. Rad1 {[%clk 0:01:01]}  Kh7 {[%clk 0:01:47]} 27. Nxf5 {[%clk 0:00:52]}  Nxf5 {[%clk 0:01:42]} 28. Bxf5+ {[%clk 0:00:52]}  Kg7 {[%clk 0:01:42]} 29. Qxe8 {[%clk 0:00:49]}  Rxe8 {[%clk 0:01:41]} 30. Rxe8 {[%clk 0:00:49]}  Qf6 {[%clk 0:01:41]} 31. Re5 {[%clk 0:00:45]}  d4 {[%clk 0:01:35]} 32. Rde1 {[%clk 0:00:45]}  d3 {[%clk 0:01:30]} 33. Re7+ {[%clk 0:00:36]}  Bf7 {[%clk 0:01:29]} 34. Bxd3 {[%clk 0:00:36]}  Qxb2 {[%clk 0:01:26]} 35. R1e3 {[%clk 0:00:31]}  c4 {[%clk 0:01:22]} 36. Bf5 {[%clk 0:00:22]}  Qd4 {[%clk 0:01:18]} 37. Kf2 {[%clk 0:00:17]}  b3 {[%clk 0:01:14]} 38. Kf3 {[%clk 0:00:13]}  Kf6 {[%clk 0:01:08]} 39. Bb1 {[%clk 0:00:07]}  c3 {[%clk 0:01:06]} 40. R7e4 {[%clk 0:00:04]}  Bd5 {[%clk 0:01:05]} 0-1


[Site "https://www.chess.com"]

[Event "Titled Tuesday Blitz March 07 Late 2023"]
[White "Hjartarson, Johann"]
[Black "Yano, William Jorge Froes"]
[WhiteFideId "2300044"]
[BlackFideId "2112949"]
[WhiteElo "2416"]
[BlackElo "2122"]
[Result "0-1"]
[Round "01"]
[TimeControl "180+2"]
[Date "2023.03.07"]
[WhiteClock "0:01:38"]
[BlackClock "0:02:13"]

1. e4 {[%clk 0:02:58]}  e6 {[%clk 0:02:59]} 2. d4 {[%clk 0:02:56]}  d5 {[%clk 0:02:59]} 3. e5 {[%clk 0:02:55]}  c5 {[%clk 0:02:56]} 4. c3 {[%clk 0:02:55]}  Nc6 {[%clk 0:02:56]} 5. Nf3 {[%clk 0:02:53]}  Nh6 {[%clk 0:02:56]} 6. Bd3 {[%clk 0:02:47]}  f6 {[%clk 0:02:55]} 7. O-O {[%clk 0:02:44]}  Nf7 {[%clk 0:02:55]} 8. exf6 {[%clk 0:02:39]}  Qxf6 {[%clk 0:02:55]} 9. Re1 {[%clk 0:02:36]}  Bd6 {[%clk 0:02:53]} 10. Na3 {[%clk 0:02:32]}  O-O {[%clk 0:02:51]} 11. Nb5 {[%clk 0:02:29]}  Bb8 {[%clk 0:02:51]} 12. dxc5 {[%clk 0:02:23]}  e5 {[%clk 0:02:46]} 13. Bc2 {[%clk 0:02:21]}  e4 {[%clk 0:02:43]} 14. Nfd4 {[%clk 0:02:20]}  Nfe5 {[%clk 0:02:43]} 15. Be3 {[%clk 0:02:12]}  Bg4 {[%clk 0:02:35]} 16. Qc1 {[%clk 0:02:07]}  Qh4 {[%clk 0:02:35]} 17. Nd6 {[%clk 0:01:59]}  Nxd4 {[%clk 0:02:13]} 18. cxd4 {[%clk 0:01:46]}  Nf3+ {[%clk 0:02:13]} 19. gxf3 {[%clk 0:01:38]}  Bxf3 {[%clk 0:02:13]} 0-1


[Site "https://www.chess.com"]